bitfinex/quotes_ETHUSD_20260107
["timestamp","ask_amount","ask_price","bid_price","bid_amount"]
[1767770303098,1.61301369,3255.4,3255.0,0.001]
[1767770303589,0.9078777,3255.4,3255.0,0.001]
[1767770303796,3.97970351,3255.4,3255.0,0.001]
[1767770304299,0.9078777,3255.4,3255.0,0.001]
[1767770304759,3.9797032,3255.4,3255.0,0.001]
[1767770309497,3.9797032,3255.4,3255.3,0.001]
[1767770309669,4.68484718,3255.4,3255.0,0.001]
[1767770309863,1.61301261,3255.4,3255.0,0.001]
[1767770310062,3.97972272,3255.4,3255.0,0.001]
[1767770310999,0.9078777,3255.4,3255.0,0.001]
[1767770311803,3.97971111,3255.4,3255.0,0.001]
[1767770312317,0.9078777,3255.4,3255.0,0.001]
[1767770313103,3.97973251,3255.4,3255.0,0.001]
[1767770313302,3.9797121,3255.4,3255.0,0.001]
[1767770313609,4.68484704,3255.4,3255.0,0.001]
[1767770313809,4.68484151,3255.4,3255.0,0.001]
[1767770314516,3.77696381,3255.4,3255.0,0.001]
[1767770317011,0.94121662,3255.3,3254.5,0.95912806]
[1767770317914,4.01322448,3255.2,3254.5,0.95912806]
[1767770318115,0.40132245,3255.1,3254.5,0.95912806]
[1767770319524,4.01322448,3255.2,3254.5,0.95912806]
[1767770321024,4.01322448,3255.2,3254.8,0.001]
[1767770321315,0.002,3255.1,3254.8,0.001]
[1767770344643,0.002,3255.1,3254.8,0.90862849]
[1767770357663,0.002,3255.1,3254.8,0.001]
[1767770366376,0.40806901,3255.1,3254.8,0.001]
[1767770366957,0.002,3255.1,3254.8,0.001]
[1767770368606,0.002,3255.1,3254.6,0.90684876]
[1767770368779,0.002,3255.1,3254.6,3.9794081]
[1767770369377,0.002,3255.1,3254.6,0.90684876]
[1767770369778,0.002,3255.1,3254.9,0.001]
[1767770372595,0.002,3255.1,3254.9,0.94536082]
[1767770372764,0.002,3255.4,3255.0,0.94436082]
[1767770372955,0.002,3255.4,3255.0,4.01650244]
[1767770373265,0.002,3255.4,3255.2,0.94436082]
[1767770387704,0.002,3255.4,3255.2,4.01631238]
[1767770388000,0.002,3256.0,3255.4,0.94436082]
[1767770388794,0.002,3256.0,3255.6,0.94436082]
[1767770390599,0.002,3256.0,3255.7,0.94436082]
[1767770391577,0.002,3256.6,3256.0,0.94436082]
[1767770392396,0.90328858,3256.3,3255.4,0.94436082]
[1767770393096,0.90128858,3256.1,3255.4,0.94436082]
[1767770393622,0.002,3255.7,3255.4,0.94436082]
[1767770393787,0.002,3255.7,3255.5,0.48212073]
[1767770395700,0.002,3255.7,3255.5,1.42648155]
[1767770395899,0.002,3255.7,3255.5,0.94436082]
[1767770397313,0.002,3255.7,3255.6,0.94436082]
[1767770399691,0.002,3255.7,3255.6,4.01599124]
[1767770400832,0.002,3255.7,3255.6,0.94436082]
[1767770401387,0.002,3255.7,3255.3,3.07190761]
[1767770401388,0.002,3255.7,3255.4,3.99435104]
[1767770401587,0.002,3255.7,3255.4,0.92256802]
[1767770402305,0.002,3255.7,3255.4,4.47428578]
[1767770402516,0.002,3255.7,3255.5,0.93139806]
[1767770403039,0.002,3255.7,3255.5,0.9621153]
[1767770403205,0.002,3255.7,3255.5,0.93139806]
[1767770404048,0.002,3255.7,3255.5,4.00306136]
[1767770404216,0.002,3255.7,3255.6,0.75547791]
[1767770404536,0.002,3255.7,3255.6,1.68687597]
[1767770406740,0.002,3255.7,3255.6,4.75850639]
[1767770407435,0.002,3256.3,3255.9,0.93139806]
[1767770408807,0.002,3256.3,3255.9,1.10503787]
[1767770413253,0.002,3256.3,3255.9,4.17638353]
[1767770415646,0.002,3256.3,3256.0,0.93139806]
[1767770426245,0.002,3256.3,3256.1,0.93139806]
[1767770428167,0.002,3256.3,3256.2,0.93139806]
[1767770429470,0.002,3256.3,3256.2,1.33166298]
[1767770429964,0.002,3256.3,3256.2,0.93139806]
[1767770430262,0.002,3256.6,3256.2,3.07106443]
[1767770430465,0.002,3256.6,3256.2,3.87606443]
[1767770430762,0.002,3256.6,3256.2,6.94712886]
[1767770431156,0.002,3256.6,3256.2,3.87606443]
[1767770431337,0.002,3256.6,3256.3,0.694722]
[1767770431667,0.97695636,3256.6,3256.3,0.694722]
[1767770432175,0.002,3256.6,3256.3,0.694722]
[1767770432461,0.002,3256.6,3256.3,3.76568511]
[1767770434148,0.002,3256.6,3256.4,0.97346476]
[1767770435066,0.002,3256.6,3256.4,1.52787975]
[1767770435936,0.002,3256.6,3256.5,0.97346476]
[1767770441069,0.002,3256.6,3256.4,0.55441499]
[1767770441372,0.002,3256.6,3256.3,0.97346476]
[1767770441978,0.002,3256.6,3256.4,0.97346476]
[1767770447576,0.002,3256.6,3256.4,4.04433922]
[1767770447878,4.04457774,3257.1,3256.4,0.97346476]
[1767770449081,3.07197038,3257.4,3256.5,0.97346476]
[1767770449280,1.26211738,3257.3,3256.5,0.97346476]
[1767770449453,0.97495636,3257.3,3256.5,0.97346476]
[1767770449892,4.04500184,3257.3,3256.5,0.97346476]
[1767770450092,4.04500184,3257.3,3256.6,0.97346476]
[1767770450257,3.07004548,3257.3,3256.6,0.97346476]
[1767770450452,3.51580086,3257.3,3256.6,0.97346476]
[1767770452490,0.44575538,3257.3,3256.6,0.97346476]
[1767770452659,3.0700519,3257.3,3256.6,0.97346476]
[1767770453662,0.002,3257.0,3256.6,0.97346476]
[1767770454766,0.002,3257.0,3256.6,4.04414346]
[1767770454977,0.002,3257.0,3256.3,3.07096824]
[1767770454978,0.002,3257.0,3256.7,0.97346476]
[1767770455872,0.002,3257.0,3256.5,4.04422223]
[1767770456072,0.002,3257.3,3256.7,0.97346476]
[1767770456397,0.002,3257.3,3256.8,0.97346476]
[1767770457294,0.002,3257.3,3256.9,0.97346476]
[1767770461072,0.002,3257.3,3256.8,0.805]
[1767770461895,0.96852591,3257.3,3256.6,1.3535703]
[1767770462092,0.96852591,3257.3,3256.7,0.52293489]
[1767770462576,4.03856325,3257.3,3256.6,0.94914808]
[1767770464013,0.96652591,3257.2,3256.6,0.94914808]
[1767770464220,0.96652591,3257.2,3256.2,0.92021575]
[1767770464221,0.96652591,3257.1,3256.1,0.90590511]
[1767770464506,4.48618936,3257.2,3256.1,0.90590511]
[1767770464507,0.96652591,3257.0,3256.1,0.90590511]
[1767770464707,0.96652591,3256.8,3256.1,0.90590511]
[1767770464881,0.96652591,3256.8,3256.1,1.38422954]
[1767770465092,7.10733465,3256.9,3256.1,1.38422954]
[1767770465475,0.96652591,3256.8,3256.1,0.90590511]
[1767770467007,3.07059293,3256.7,3255.9,0.90690511]
[1767770467208,4.03711884,3256.7,3255.9,0.90690511]
[1767770467903,0.96652591,3256.6,3255.9,0.90690511]
[1767770468107,0.96652591,3256.6,3255.9,0.001]
[1767770468311,0.96652591,3256.6,3255.4,0.90590511]
[1767770468312,0.96652591,3256.2,3255.4,0.90590511]
[1767770468520,0.96652591,3256.2,3254.9,0.001]
[1767770468521,0.96652591,3256.2,3255.0,0.90590511]
[1767770469019,4.03768465,3256.1,3255.2,0.90590511]
[1767770469314,0.96652591,3256.0,3255.2,0.90590511]
[1767770470113,1.67741025,3256.0,3255.2,0.90590511]
[1767770470279,0.96652591,3255.9,3255.2,0.90590511]
[1767770471417,0.96652591,3255.7,3255.0,0.90590511]
[1767770472082,0.96652591,3255.7,3254.9,0.001]
[1767770472286,0.96652591,3255.7,3254.9,0.90690511]
[1767770472513,0.96652591,3255.6,3254.9,0.90690511]
[1767770473517,6.14344954,3255.5,3254.9,0.90690511]
[1767770473816,6.14344954,3255.5,3254.9,0.001]
[1767770473817,0.96652591,3255.4,3254.9,0.001]
[1767770475487,3.07191349,3255.3,3254.9,0.001]
[1767770478724,4.03836956,3255.4,3254.9,0.001]
[1767770478895,0.40383696,3255.3,3255.2,0.001]
[1767770481506,1.37036287,3255.3,3254.9,0.001]
[1767770482412,0.96652591,3255.3,3254.9,0.001]
[1767770486624,3.07172477,3255.5,3254.9,0.001]
[1767770486821,3.07172477,3255.5,3254.9,0.90690511]
[1767770490331,3.07172477,3255.5,3255.2,0.001]
[1767770491132,3.07372477,3255.5,3255.2,0.001]
[1767770491331,3.95749734,3255.5,3255.2,0.001]
[1767770495603,4.06397575,3255.4,3255.2,0.001]
[1767770495939,0.88577257,3255.5,3255.2,0.001]
[1767770495940,3.95752018,3255.5,3255.2,0.001]
[1767770519269,3.07374761,3255.5,3255.2,0.98019998]
[1767770520066,0.002,3255.5,3255.2,0.98019998]
[1767770523168,0.92479683,3255.5,3255.2,0.001]
[1767770523462,0.92479683,3255.5,3254.9,0.001]
[1767770524368,3.07191349,3255.3,3254.9,0.001]
[1767770524539,3.07185833,3255.4,3254.9,0.92444497]
[1767770524742,0.28770156,3255.3,3254.9,0.92444497]
[1767770525077,3.87874944,3255.5,3254.9,0.92444497]
[1767770525252,0.28770228,3255.4,3254.9,0.92444497]
[1767770525585,3.87874944,3255.5,3254.9,0.92444497]
[1767770525586,0.002,3255.5,3254.9,0.92444497]
[1767770525938,0.002,3255.5,3255.1,0.92344497]
[1767770527266,0.002,3255.2,3255.1,0.92344497]
[1767770527466,0.002,3255.5,3255.2,0.92344497]
[1767770532085,0.002,3255.5,3255.0,1.32312602]
[1767770532293,0.002,3255.5,3255.0,0.92344497]
[1767770534490,0.002,3255.5,3254.9,0.001]
[1767770534491,0.95494827,3255.4,3254.9,0.001]
[1767770536462,4.02678448,3255.4,3254.9,0.001]
[1767770537486,0.95494827,3255.3,3254.9,0.001]
[1767770538757,3.07200786,3255.2,3254.9,0.001]
[1767770539661,3.07400786,3255.2,3254.9,0.001]
[1767770540985,4.73904363,3255.2,3254.9,0.001]
[1767770541168,0.95494827,3255.1,3254.9,0.001]
[1767770546795,4.02705883,3255.1,3254.9,0.001]
[1767770547199,0.95494827,3255.1,3254.9,0.001]
[1767770548294,3.07408847,3255.2,3254.9,0.001]
[1767770548875,0.95694827,3255.2,3254.9,0.001]
[1767770549966,4.02902539,3255.2,3254.9,0.001]
[1767770550164,4.73911584,3255.2,3254.9,0.001]
[1767770553193,1.66703872,3255.2,3254.9,0.001]
[1767770553499,0.002,3255.2,3254.9,0.96900855]
[1767770553700,3.0716719,3255.6,3254.9,0.96900855]
[1767770554210,0.98819566,3255.8,3254.9,0.96900855]
[1767770554382,3.0713474,3255.9,3254.9,0.96900855]
[1767770555591,6.1426948,3255.9,3254.9,0.96900855]
[1767770555786,6.1426948,3255.9,3255.1,0.96800855]
[1767770556098,3.0713474,3255.9,3255.1,0.96800855]
[1767770556694,6.1426948,3255.9,3255.1,0.96800855]
[1767770558809,7.13089046,3255.9,3255.1,0.96800855]
[1767770559494,0.98819566,3255.8,3255.1,0.96800855]
[1767770560196,3.07153607,3255.7,3255.1,0.96800855]
[1767770561003,6.14307214,3255.7,3255.1,0.96800855]
[1767770561884,3.07153607,3255.7,3255.1,0.96800855]
[1767770562912,3.07153607,3255.7,3255.4,0.001]
[1767770563084,0.002,3255.6,3255.4,0.001]
[1767770588106,0.002,3255.6,3255.4,0.94413886]
[1767770597835,0.002,3255.6,3255.4,0.001]
[1767770604238,0.002,3255.6,3255.2,0.94313886]
[1767770604239,0.002,3255.6,3254.9,0.001]
[1767770604421,0.002,3255.6,3254.9,0.94413886]
[1767770605957,6.14526084,3255.6,3254.9,0.94413886]
[1767770606244,0.7070874,3255.5,3254.9,0.94413886]
[1767770608347,3.07181913,3255.4,3254.9,0.94413886]
[1767770609646,3.07181913,3255.4,3255.2,0.001]
[1767770614043,3.07181913,3255.4,3254.9,0.001]
[1767770614044,7.12698343,3255.4,3254.9,0.001]
[1767770614247,2.13477203,3255.3,3254.9,0.001]
[1767770614415,1.84725225,3255.3,3254.9,0.001]
[1767770615320,0.98334517,3255.2,3254.9,0.001]
[1767770616554,3.07210223,3255.1,3254.9,0.001]
[1767770617944,4.0554474,3255.1,3254.9,0.001]
[1767770618149,0.71274807,3255.0,3254.9,0.001]
[1767770619849,4.76828986,3255.0,3254.9,0.001]
[1767770620055,3.78494469,3255.0,3254.9,0.001]
[1767770620861,4.76828986,3255.0,3254.9,0.001]
[1767770623061,1.69609324,3255.0,3254.9,0.001]
[1767770625363,4.76829692,3255.0,3254.2,0.95414242]
[1767770625661,4.76829692,3255.0,3254.2,1.35994026]
[1767770625662,0.98334517,3254.9,3254.2,1.35994026]
[1767770625865,0.98334517,3254.9,3254.2,0.95414242]
[1767770629047,3.07213693,3255.1,3254.2,0.95414242]
[1767770629372,4.0554821,3255.1,3254.2,0.95414242]
[1767770632866,0.98334517,3255.0,3254.2,0.95414242]
[1767770633262,0.98334517,3255.0,3254.5,0.001]
[1767770633463,0.40554821,3254.9,3254.5,0.001]
[1767770639476,0.805,3255.3,3254.5,0.91927314]
[1767770639782,0.28733969,3255.2,3254.5,0.91927314]
[1767770639970,0.805,3255.4,3254.5,0.91927314]
[1767770640292,3.07200786,3255.2,3254.5,0.91927314]
[1767770642577,6.1438323,3255.3,3254.5,0.91927314]
[1767770642780,0.9824002,3255.2,3254.5,0.91927314]
[1767770642984,0.69488323,3255.2,3254.5,0.91927314]
[1767770643276,0.28762182,3255.1,3254.5,0.91927314]
[1767770643482,0.69488323,3255.2,3254.5,0.91927314]
[1767770643669,0.28762202,3255.1,3254.5,0.91927314]
[1767770643847,0.69488323,3255.2,3254.5,0.91927314]
[1767770644043,1.06718692,3255.1,3254.5,0.91927314]
[1767770644259,0.77956493,3255.1,3254.5,0.91927314]
[1767770644460,3.072291,3254.9,3254.5,0.001]
[1767770644757,4.02915011,3255.0,3254.5,0.001]
[1767770645681,0.002,3254.9,3254.5,0.001]
[1767770646071,0.002,3254.9,3254.5,0.92298502]
[1767770651187,4.03124336,3254.9,3254.5,0.001]
[1767770651403,0.95693379,3254.6,3253.1,0.92198502]
[1767770651690,0.95693379,3254.6,3252.8,0.001]
[1767770651691,0.95693379,3254.4,3253.6,0.92198502]
[1767770651893,0.95693379,3254.2,3253.3,0.92198502]
[1767770652266,0.95693379,3254.2,3253.3,1.32465525]
[1767770652470,0.95693379,3254.2,3253.4,0.92198502]
[1767770653295,4.02976484,3254.4,3253.5,0.92198502]
[1767770654012,0.95693379,3254.3,3253.5,0.92198502]
[1767770655297,4.02988566,3254.2,3253.5,0.92198502]
[1767770655481,4.74015733,3254.2,3253.5,0.92198502]
[1767770655676,0.95693379,3254.1,3253.3,1.32465525]
[1767770655881,0.95693379,3254.1,3253.3,0.92198502]
[1767770657610,4.02999558,3254.1,3253.3,0.92198502]
[1767770659010,4.02999558,3254.1,3253.6,0.001]
[1767770660316,0.95693379,3254.1,3253.6,0.001]
[1767770662008,0.71027167,3254.2,3253.6,0.001]
[1767770662206,3.07295627,3254.2,3253.6,0.92298502]
[1767770670312,0.002,3253.9,3253.6,0.92298502]
[1767770677615,0.002,3253.9,3253.6,0.001]
[1767770680037,0.002,3253.9,3253.6,0.99461488]
[1767770680209,0.002,3254.2,3253.8,0.99361488]
[1767770680413,0.002,3254.2,3253.9,0.03073235]
[1767770684405,0.002,3254.2,3253.9,1.02434723]
[1767770684612,0.002,3254.9,3254.0,0.99361488]
[1767770684911,0.002,3254.9,3253.9,7.5983859]
[1767770684912,0.002,3254.9,3254.2,0.99361488]
[1767770686245,0.002,3254.9,3254.3,0.99361488]
[1767770688838,0.002,3254.9,3254.4,0.99361488]
[1767770690641,0.002,3254.9,3254.4,4.06635629]
[1767770690950,0.002,3254.9,3254.5,0.99361488]
[1767770694024,0.002,3254.6,3254.5,1.40026144]
[1767770694355,0.002,3254.9,3254.5,0.99361488]
[1767770697456,0.002,3255.2,3254.6,0.99361488]
[1767770698741,0.03272386,3255.1,3254.6,0.99361488]
[1767770698941,0.03272386,3255.1,3254.6,0.99161488]
[1767770699756,1.02072489,3255.2,3254.6,0.99161488]
[1767770699958,4.09275339,3255.2,3254.6,0.99161488]
[1767770700458,4.09275339,3255.2,3254.4,4.00249634]
[1767770700642,4.09275339,3255.2,3254.5,0.40024963]
[1767770700952,0.98600103,3255.1,3254.5,0.40024963]
[1767770701830,0.98600103,3255.1,3254.5,3.47290844]
[1767770702229,0.98600103,3255.1,3254.5,4.4291604]
[1767770702652,0.002,3255.2,3254.6,0.95625196]
[1767770703859,0.002,3255.2,3254.7,0.95625196]
[1767770705260,0.002,3255.2,3254.7,4.02870292]
[1767770705464,0.002,3255.2,3254.8,0.95625196]
[1767770705977,3.97550333,3255.6,3254.8,0.95625196]
[1767770705978,0.90384688,3255.6,3254.8,0.95625196]
[1767770706138,0.002,3255.6,3255.0,0.95625196]
[1767770706513,0.002,3255.6,3255.2,0.95625196]
[1767770710058,0.90384688,3255.6,3254.9,0.95625196]
[1767770710865,0.90384688,3255.6,3254.8,3.07232415]
[1767770711669,0.90384688,3255.6,3254.7,4.02873175]
[1767770712591,0.93457074,3255.5,3254.7,4.02873175]
[1767770712759,0.93457074,3255.5,3254.8,1.71067322]
[1767770713872,0.93457074,3255.5,3254.9,3.072291]
[1767770716582,0.93457074,3255.5,3254.9,4.02854296]
[1767770716885,0.90184688,3255.5,3254.9,4.02854296]
[1767770717568,0.002,3255.6,3255.0,0.95625196]
[1767770717778,0.002,3255.6,3255.2,0.95625196]
[1767770717981,0.002,3255.3,3255.2,0.95625196]
[1767770718180,0.002,3255.9,3255.3,0.95625196]
[1767770718385,0.03472386,3255.9,3255.3,0.95625196]
[1767770719573,0.90184688,3256.2,3255.4,0.95625196]
[1767770719771,0.90184688,3256.2,3255.5,0.95625196]
[1767770719971,0.03472386,3256.3,3255.5,0.95625196]
[1767770720291,3.10571945,3256.3,3255.5,0.95625196]
[1767770720466,4.00756633,3256.3,3255.5,0.95625196]
[1767770720670,3.97484247,3256.3,3255.5,0.95625196]
[1767770721098,3.95756633,3256.3,3255.5,0.95625196]
[1767770721302,3.95756633,3256.3,3255.5,4.02794697]
[1767770721685,3.92484247,3256.3,3255.5,4.02794697]
[1767770722605,3.95756633,3256.3,3255.5,4.02794697]
[1767770722806,3.95756633,3256.3,3255.5,0.95625196]
[1767770723501,0.90184688,3256.2,3255.4,0.40024963]
[1767770723708,0.93457074,3256.1,3255.3,4.02812961]
[1767770724705,0.93457074,3256.1,3255.1,3.63997241]
[1767770724706,0.90184688,3256.0,3255.1,1.52419958]
[1767770724909,0.93457074,3255.9,3255.1,0.95625196]
[1767770725110,0.93457074,3255.9,3255.1,4.02828445]
[1767770725411,0.93457074,3255.9,3255.2,0.95625196]
[1767770725595,0.90184688,3255.8,3254.3,4.49444311]
[1767770725905,1.2383008,3255.9,3254.3,4.49444311]
[1767770725906,0.90184688,3255.6,3254.7,4.02866662]
[1767770727008,0.90184688,3255.6,3254.8,3.0723719]
[1767770727210,0.93457074,3255.6,3254.8,4.02862386]
[1767770727407,0.93457074,3255.6,3254.8,4.73874137]
[1767770727590,0.93457074,3255.6,3254.9,0.95625196]
[1767770729517,0.03272386,3255.6,3254.9,0.95625196]
[1767770729684,0.03272386,3255.6,3255.0,0.95625196]
[1767770730011,0.03272386,3255.6,3255.4,0.001]
[1767770730209,0.03272386,3255.7,3255.4,0.001]
[1767770735297,3.10429598,3255.7,3255.4,0.001]
[1767770735807,0.03272386,3255.7,3255.4,0.001]
[1767770737301,3.10429007,3255.7,3255.4,0.001]
[1767770740099,3.10426041,3255.7,3255.4,0.001]
[1767770740415,0.93457074,3255.8,3255.4,0.001]
[1767770741023,4.00602651,3255.8,3255.4,0.001]
[1767770741323,4.79425499,3255.8,3255.4,0.001]
[1767770741512,4.79425499,3255.8,3255.7,0.001]
[1767770741711,5.08157339,3255.8,3255.7,0.001]
[1767770743727,4.17972651,3255.8,3255.7,0.001]
[1767770744227,1.10827074,3255.8,3255.7,0.001]
[1767770745120,4.17971247,3255.8,3255.7,0.001]
[1767770745833,3.89239407,3255.8,3255.7,0.001]
[1767770747207,4.17970806,3255.8,3255.7,0.001]
[1767770748314,3.89239407,3255.8,3255.7,0.001]
[1767770749112,0.82095234,3255.8,3255.7,0.001]
[1767770749313,4.17970713,3255.8,3255.7,0.001]
[1767770750131,0.90476893,3255.7,3255.4,0.001]
[1767770750324,0.03272386,3255.6,3255.4,0.001]
[1767770755824,3.10437923,3255.6,3255.4,0.001]
[1767770756229,0.03272386,3255.6,3255.4,0.001]
[1767770761440,0.78822848,3255.8,3255.4,0.001]
[1767770761441,3.8924326,3255.8,3255.4,0.001]
[1767770761742,0.28773193,3255.7,3255.4,0.001]
[1767770761929,3.8924326,3255.8,3255.4,0.001]
[1767770762135,0.28773165,3255.7,3255.4,0.001]
[1767770762434,3.8924326,3255.8,3255.4,0.001]
[1767770762741,0.28773178,3255.7,3255.4,0.001]
[1767770762929,0.90217529,3255.8,3255.4,0.001]
[1767770763123,0.28773138,3255.7,3255.4,0.001]
[1767770763313,3.07140083,3255.9,3255.4,0.001]
[1767770763516,0.28772926,3255.8,3255.4,0.001]
[1767770763728,0.28772926,3255.7,3255.4,0.001]
[1767770763933,3.07140083,3255.9,3255.4,0.001]
[1767770764139,0.28772933,3255.8,3255.4,0.001]
[1767770764442,0.28772933,3255.7,3255.4,0.001]
[1767770764631,3.07140083,3255.9,3255.4,0.001]
[1767770764831,3.35921765,3255.8,3255.7,0.001]
[1767770766451,0.28772944,3255.8,3255.7,0.001]
[1767770766632,3.35917117,3255.8,3255.7,0.001]
[1767770767028,0.28772944,3255.8,3255.7,0.001]
[1767770767845,3.0727303,3256.6,3255.7,0.92520728]
[1767770767846,0.90217529,3256.5,3255.7,0.92520728]
[1767770768033,0.90217529,3256.5,3255.7,0.92320728]
[1767770768034,3.35855941,3256.4,3255.7,0.92320728]
[1767770768238,0.2876836,3256.3,3255.7,0.92320728]
[1767770768536,0.2876836,3256.2,3255.7,0.92320728]
[1767770768730,6.14175162,3256.4,3255.7,0.92320728]
[1767770768952,0.28751863,3256.3,3255.7,0.92320728]
[1767770769248,0.28751863,3256.2,3255.7,0.92320728]
[1767770769438,0.03272386,3256.3,3255.7,0.92320728]
[1767770769748,0.28742872,3256.2,3255.7,0.92320728]
[1767770769948,0.03272386,3256.3,3255.7,0.92320728]
[1767770770146,0.28742874,3256.2,3255.7,0.92320728]
[1767770770447,0.03272386,3256.3,3255.7,0.92320728]
[1767770770749,0.6558109,3256.3,3255.7,0.92320728]
[1767770770949,3.07106443,3256.2,3255.7,0.92320728]
[1767770771252,0.03272386,3256.1,3255.5,0.92420728]
[1767770771460,0.00118962,3255.7,3255.5,0.92420728]
[1767770772440,0.00118962,3255.7,3255.4,0.001]
[1767770772638,0.90336491,3255.7,3254.8,0.92420728]
[1767770772842,0.90336491,3255.7,3254.3,0.92420728]
[1767770773017,0.90217529,3255.5,3254.3,0.92420728]
[1767770773216,0.90217529,3255.3,3254.1,3.07300898]
[1767770773452,0.90217529,3255.3,3254.1,0.92420728]
[1767770774072,0.73327684,3255.4,3253.9,0.92420728]
[1767770774073,0.90217529,3255.1,3253.9,0.92420728]
[1767770774248,0.90217529,3254.9,3253.9,0.92420728]
[1767770775121,3.97456069,3254.8,3253.9,0.92420728]
[1767770775318,7.52490216,3254.8,3253.9,0.92420728]
[1767770775523,4.45251676,3254.8,3253.9,0.92420728]
[1767770776658,7.52490216,3254.8,3254.2,0.001]
[1767770776829,0.90217529,3254.7,3254.2,0.001]
[1767770777027,3.0725742,3254.6,3254.2,0.001]
[1767770777227,3.8250967,3254.6,3254.2,0.001]
[1767770778420,4.72727199,3254.6,3254.2,0.001]
[1767770778751,4.72727199,3254.6,3253.9,0.92401766]
[1767770780033,7.79984619,3254.6,3253.9,0.92401766]
[1767770780732,4.72727199,3254.6,3253.9,0.92401766]
[1767770782628,0.77997726,3254.5,3253.9,0.92401766]
[1767770783834,3.07276302,3254.4,3253.9,0.92401766]
[1767770784963,3.07276302,3254.4,3253.7,0.92420728]
[1767770786558,4.7875833,3254.5,3253.7,0.92420728]
[1767770787571,4.7875833,3254.5,3253.8,0.92420728]
[1767770788075,3.88540801,3254.5,3253.8,0.92420728]
[1767770788270,3.88540801,3254.5,3254.0,0.001]
[1767770788558,0.002,3254.3,3254.0,0.001]
[1767770801155,0.9217667,3254.6,3254.2,0.94696718]
[1767770801156,0.002,3254.6,3254.2,0.94696718]
[1767770801351,0.9197667,3255.4,3254.6,0.94596718]
[1767770801352,0.03272386,3255.3,3254.6,0.94596718]
[1767770802443,0.9197667,3255.4,3254.6,0.94596718]
[1767770802666,4.47127675,3255.4,3254.6,0.94596718]
[1767770802872,1.39941664,3255.4,3254.6,0.94596718]
[1767770803066,3.99159132,3255.4,3254.6,4.01853596]
[1767770803374,4.02431518,3255.4,3254.6,0.94596718]
[1767770803574,3.99159132,3255.4,3254.6,0.94596718]
[1767770804375,0.9197667,3255.4,3254.7,0.94596718]
[1767770805177,3.99160522,3255.4,3254.7,0.94596718]
[1767770806983,4.02432908,3255.4,3254.7,0.94596718]
[1767770813495,0.002,3255.1,3254.7,0.94596718]
[1767770816572,0.002,3255.1,3254.7,0.93596718]
[1767770826193,0.002,3255.1,3254.8,0.99567221]
[1767770830519,0.002,3255.4,3254.9,0.99567221]
[1767770837764,0.002,3255.1,3254.9,0.99567221]
[1767770840755,0.002,3255.1,3254.8,0.40681491]
[1767770841965,0.92002079,3255.0,3254.5,3.07262795]
[1767770842161,0.002,3255.1,3254.5,4.06830016]
[1767770842335,0.002,3255.1,3254.6,0.99567221]
[1767770843856,0.92202079,3255.1,3254.3,0.99567221]
[1767770844738,0.92202079,3255.1,3254.2,0.001]
[1767770845062,0.92202079,3255.1,3254.3,3.07280478]
[1767770845263,0.92202079,3255.1,3254.4,3.47970451]
[1767770849114,0.92202079,3255.1,3254.4,0.4069477]
[1767770849977,0.92202079,3255.1,3254.7,0.001]
[1767770851548,0.95474465,3255.1,3254.7,0.001]
[1767770852066,4.02686682,3255.1,3254.7,0.001]
[1767770852575,0.95688895,3255.0,3254.7,0.001]
[1767770852905,0.95688895,3255.0,3254.2,0.001]
[1767770853595,0.95688895,3254.8,3254.2,0.001]
[1767770853801,6.85612341,3255.1,3254.2,0.001]
[1767770853802,0.95688895,3254.6,3254.2,0.001]
[1767770856197,0.95688895,3254.9,3254.2,0.001]
[1767770856403,0.40291213,3254.8,3254.2,0.97898049]
[1767770856625,0.03272386,3255.0,3254.2,0.97898049]
[1767770858406,3.1049448,3255.0,3254.2,0.97898049]
[1767770859603,0.95688895,3254.9,3254.2,0.97898049]
[1767770859808,0.03272386,3254.8,3254.2,0.97898049]
[1767770861813,0.03272386,3254.8,3254.5,0.001]
[1767770862005,0.002,3254.7,3254.5,0.001]
[1767770874302,0.002,3254.7,3254.5,0.97898049]
[1767770880911,0.002,3254.7,3254.5,0.001]
[1767770881820,0.93037396,3254.7,3254.5,0.001]
[1767770884531,0.03272386,3254.6,3254.5,0.001]
[1767770885029,0.93037396,3254.7,3254.5,0.001]
[1767770890425,0.03272386,3254.6,3254.5,0.001]
[1767770890938,0.96109782,3254.6,3254.5,0.001]
[1767770892242,0.002,3254.7,3254.5,0.94052042]
[1767770892447,0.002,3255.0,3254.5,0.94052042]
[1767770892448,0.93037396,3255.0,3254.5,0.001]
[1767770893028,0.002,3255.0,3254.5,0.94052042]
[1767770896242,0.002,3255.0,3254.5,4.01316601]
[1767770896428,0.002,3255.0,3254.6,0.93952042]
[1767770896827,0.807,3255.4,3254.9,0.93952042]
[1767770896828,0.002,3255.4,3254.9,0.93952042]
[1767770898646,0.002,3255.4,3254.9,3.07224005]
[1767770898832,0.002,3255.4,3255.0,0.93952042]
[1767770899018,0.002,3255.4,3255.1,0.40117605]
[1767770899550,0.92837396,3255.3,3255.1,0.40117605]
[1767770900049,3.87640208,3255.9,3255.1,0.40117605]
[1767770900050,0.92837396,3255.8,3255.3,0.01895813]
[1767770901252,0.92837396,3255.7,3255.3,0.01895813]
[1767770901451,3.07149394,3255.8,3255.3,0.01895813]
[1767770901676,3.85930765,3255.8,3255.3,0.01895813]
[1767770902549,0.78781371,3255.8,3255.3,0.01895813]
[1767770903551,3.85927127,3255.8,3255.3,0.01895813]
[1767770904025,0.78781371,3255.8,3255.3,0.01895813]
[1767770904221,1.73337396,3255.9,3255.3,0.01895813]
[1767770904449,4.80475579,3255.9,3255.3,0.01895813]
[1767770905365,4.80474723,3255.9,3255.3,0.01895813]
[1767770905576,4.80474723,3255.9,3255.3,0.95847855]
[1767770910438,7.8761205,3255.9,3255.3,0.01895813]
[1767770910645,8.66393255,3255.9,3255.3,0.01895813]
[1767770910844,0.92837396,3255.8,3255.3,0.01895813]
[1767770911483,0.002,3255.6,3255.3,0.01895813]
[1767770915472,0.002,3255.6,3255.1,0.93952042]
[1767770923677,0.002,3255.6,3255.4,0.001]
[1767770924552,0.94927872,3255.6,3255.4,0.001]